Workbook

Sheet Natale2013
A1: NATALE 2015 ORDINE MINIMO 30€ | G1: Fil. | H1: C/C
A3: Codice Socio | B3: COGNOME - NOME | C3: cell | D3: Indirizzo Mail Obbligatorio | H3: Totale Ordine €
H4: =F54 -> 0
A5: Per la compilazione in modo elettronico dell'ordine segui le istruzioni: Parti dalle celle gialle in testa con l'inserimento dei tuoi dati e poi inserisci nelle celle colorate in giallo il N° pezzi , automaticamente avrai il totale, salva il file c/o il tuo Pc cambiando il nome, invia lo stesso file a offertenatale@popvi.it - Non vengono accettati fogli in formato Pdf e restituiti al mittente per il reinvio in formato excel - Grazie - Per la compilazionemanuale dell'ordine: Compila a mano le celle in giallo e spedisci il Modello al Circolo.
A7: Luogo di consegna: | C7: CASTELFRANCO | D7: PRATO | E7: UDINE | G7: VICENZA
A8: Crociare con una X dove si desidera il ritiro dei prodotti:
A9: Codice Prodotto | B9: Prodotto | C9: Costo unitario e/oKg. | D9: Totale per confezione e/o/Kg | F9: Totale
A10: A01 | B10: Riseria Carnevale :Sacchetto da Kg.2,5 Carnaroli | C10: 6 | D10: =SUM(C10:C10) -> 6 | F10: =E10*D10 -> 0
A11: A02 | B11: Riseria Nardotto: Confezione da 1 Kg. Vialone Nano | C11: 3.5 | D11: =SUM(C11:C11) -> 3.5 | F11: =E11*D11 -> 0
B12: Gusti Semplici : Succo di Melagrano Campiglia dei Berici
A13: A03 | B13: Bottiglia da 500 ml. di succo puro al 100% | C13: 5 | D13: =SUM(C13:C13) -> 5 | F13: =E13*D13 -> 0
B14: Puglia - Olio "Macchia del Barone"
A15: A04 | B15: Lattina olio extraverigne da 5 litri | C15: 32 | D15: =SUM(C15:C15) -> 32 | F15: =E15*D15 -> 0
A16: A05 | B16: Cartone 6 bottiglie olio di oliva extra vergine da 1 litro | C16: 41.4 | D16: =SUM(C16:C16) -> 41.4 | F16: =E16*D16 -> 0
B17: Sicilia - Olio Extravergine Baglio Ingardia Paceco (TP)
A18: A06 | B18: Lattina da 5 litri Baglio Ingardia | C18: 40 | D18: =SUM(C18:C18) -> 40 | F18: =E18*D18 -> 0
A19: A07 | B19: Cartone 6 Bott. :Mix: 2 Nero d'Avola-2 Catarrato - 2 Grillo | C19: 40 | D19: =SUM(C19:C19) -> 40 | F19: =E19*D19 -> 0
B20: Sicilia - Az. Agricola Bio S. Tamburello Poggioreale (TP)
A21: A08 | B21: Lattina da 5 litri Extra Vergine | C21: 40 | D21: =SUM(C21:C21) -> 40 | F21: =E21*D21 -> 0
A22: A09 | B22: Cartone 6 Bott. : Nero d'Avola | C22: 39 | D22: =SUM(C22:C22) -> 39 | F22: =E22*D22 -> 0
A23: A10 | B23: Parmigiano Reggiano :Borgotaro 1kg (circa) 28 mesi | C23: 13.8 | D23: =SUM(C23:C23) -> 13.8 | F23: =E23*D23 -> 0
A24: A11 | B24: Grana Padano Caseificio Ponte Barbarano 1kg (circa) 18 m. | C24: 12 | D24: =SUM(C24:C24) -> 12 | F24: =E24*D24 -> 0
B25: MandorlatoSpeciale Cologna Veneta "Bisognin Andrea"
A26: A12 | B26: Torta Mandorlato di Gr. 280 | C26: 11.55 | D26: =SUM(C26:C26) -> 11.55 | F26: =E26*D26 -> 0
A27: A13 | B27: Sacchetto Mandorlato dorato tocchetti da gr.280 (pezzetti di mandorlato) | C27: 11.55 | D27: =SUM(C27:C27) -> 11.55 | F27: =E27*D27 -> 0
A28: A14 | B28: Sacchetto Nocciolato dorato tocchetti da gr. 280 (mandorlato alle nocciole) | C28: 11.55 | D28: =SUM(C28:C28) -> 11.55 | F28: 0
A29: A15 | B29: Dolciaria Borrillo:Baci torroncini Borrillo gr. 300 | C29: 4.35 | D29: =SUM(C29:C29) -> 4.35 | F29: =E29*D29 -> 0
B30: Sicilia - Pasticceria Fiasconaro
A31: A16 | B31: Mandor d'Avola da 1 kg | C31: 9.22 | D31: =SUM(C31:C31) -> 9.22 | F31: =E31*D31 -> 0
A32: A17 | B32: Oro Verde: crema di pistacchi di Bronte gr.180 | C32: 4.75 | D32: =SUM(C32:C32) -> 4.75 | F32: =E32*D32 -> 0
A33: A18 | B33: Oro Nero: crema al caffè gr. 180 | C33: 4.09 | D33: =SUM(C33:C33) -> 4.09 | F33: =E33*D33 -> 0
A34: A19 | B34: Oro Bianco:crema di mandorle d'avola gr. 180 | C34: 4.09 | D34: =SUM(C34:C34) -> 4.09 | F34: =E34*D34 -> 0
B35: Az. Agricola Bellaveder - Faedo Trento
A36: A20 | B36: Muller Thurgau 2014 conf. 6 Bottiglie | C36: 42 | D36: =SUM(C36:C36) -> 42 | F36: =E36*D36 -> 0
A37: A21 | B37: Cartone Mix 2014: 2 Gewurztraminer + 2 Pinot Bianco + 2 Sauvignon | C37: 52 | D37: =SUM(C37:C37) -> 52 | F37: =E37*D37 -> 0
A38: A22 | B38: Cartone Mix: 3 Teroldego Mas Picol + 3 Lagrein Dunkel | C38: 52.5 | D38: =SUM(C38:C38) -> 52.5 | F38: 0
B39: Vini Piemontesi : Cantina Sant'Evasio Nizza Monferrato (AT)
A40: A23 | B40: Barbera d’Asti superiore doc | C40: 42 | D40: =SUM(C40:C40) -> 42 | F40: =E40*D40 -> 0
A41: A24 | B41: Moscato d’Asti docg | C41: 39 | D41: =SUM(C41:C41) -> 39 | F41: =E41*D41 -> 0
A42: A25 | B42: Brachetto d’Acqui docg | C42: 42 | D42: =SUM(C42:C42) -> 42 | F42: 0
B43: Az. Agricola Marsura Natale Guia Valdobbiadene
A44: A26 | B44: Millesimato Docg Conf. 6 bott. | C44: 32 | D44: =SUM(C44:C44) -> 32 | F44: =E44*D44 -> 0
A45: A27 | B45: MIX Le Casotte: 3Extra Dry Le Casotte + 3 Brut Le Casotte | C45: 20 | D45: =SUM(C45:C45) -> 20 | F45: =E45*D45 -> 0
A46: A28 | B46: 1 Magnum Brut Docg 1,5 L. in Astuccio Regalo | C46: 12.5 | D46: 12.5 | F46: =E46*D46 -> 0
B47: Tenuta Ambrosini - Franciacorta
A48: A29 | B48: Conf. 3 bottiglie Bollicine :Franciacorta Brut Docg | C48: 40 | D48: =SUM(C48:C48) -> 40 | F48: =E48*D48 -> 0
A49: A30 | B49: Conf. 3 bottiglie Franciacorta : 1 Saten + 1 Rosè + 1 Dosaggio zero | C49: 50 | D49: =SUM(C49:C49) -> 50 | F49: =E49*D49 -> 0
B50: Az. Agricola Perabo' : Faedis (UD)
A51: A31 | B51: Ribolla Gialla 2014 | C51: 29.28 | D51: =SUM(C51:C51) -> 29.28 | F51: =E51*D51 -> 0
A52: A32 | B52: MIX Bianco : 2 Friulano - 2 Pinot Bianco - 2 Sauvignon | C52: 29.28 | D52: =SUM(C52:C52) -> 29.28 | F52: =E52*D52 -> 0
A53: A33 | B53: MIX Rosso : 3 Cabernet Franc + 3 Refosco dal peduncolo rosso | C53: 29.28 | D53: =SUM(C53:C53) -> 29.28 | F53: 0
B54: Tot.Generale del Modello RIPORTATO IN ALTO AUTOMATICAMENTE | F54: =SUM(F10:H53) -> 0
B55: data e firma
